[Event "Chinese Championship-B Women 2024"]
[Site "Liaocheng"]
[Date "2024.04.24"]
[Round "1.1"]
[White "Wu, Yuetong"]
[Black "Wang, Chuqiao"]
[Result "0-1"]
[WhiteElo "1611"]
[BlackElo "2302"]
[PlyCount "84"]
[EventDate "2024.04.24"]
[EventType "swiss"]
[EventCountry "CHN"]
[TimeControl "5400+30"]

1. e4 {[%emt 0:00:03]} e5 {[%emt 0:00:13]} 2. Nf3 {[%emt 0:00:04]} Nc6 {[%emt 0:00:09]} 3. Bb5 {[%emt 0:00:05]} a6 {[%emt 0:00:05]} 4. Ba4 {[%emt 0:00:04]} Nf6 {[%emt 0:00:08]} 5. O-O {[%emt 0:00:06]} Be7 {[%emt 0:00:09]} 6. Re1 {[%emt 0:00:05]} b5 {[%emt 0:00:07]} 7. Bb3 {[%emt 0:00:04]} d6 {[%emt 0:00:08]} 8. h3 {[%emt 0:00:09]} O-O {[%emt 0:00:10]} 9. c3 {[%emt 0:00:10]} Bb7 {[%emt 0:00:06]} 10. d4 {[%emt 0:00:14]} Re8 {[%emt 0:00:04]} 11. Nbd2 {[%emt 0:06:48]} Bf8 {[%emt 0:00:08]} 12. Ng5 {[%emt 0:00:59]} Re7 {[%emt 0:01:36]} 13. Ndf3 {[%emt 0:00:29]} h6 {[%emt 0:01:08]} 14. Nxf7 {[%emt 0:00:45]} Rxf7 {[%emt 0:00:06]} 15. Bxf7+ {[%emt 0:00:13]} Kxf7 {[%emt 0:00:05]} 16. Qb3+ {[%emt 0:00:11]} Kg6 {[%emt 0:00:56]} 17. Nh4+ {[%emt 0:04:53]} Kh7 {[%emt 0:00:06]} 18. Nf5 {[%emt 0:02:30]} Qd7 {[%emt 0:01:40]} 19. Ng3 {[%emt 0:03:02]} Kh8 {[%emt 0:04:00]} 20. dxe5 {[%emt 0:00:44]} Nxe5 {[%emt 0:00:48]} 21. f4 {[%emt 0:03:00]} Nd3 {[%emt 0:00:54]} 22. Re3 {[%emt 0:00:35]} Nxf4 {[%emt 0:03:33]} 23. Rf3 {[%emt 0:02:01]} Ng6 {[%emt 0:01:07]} 24. Bxh6 {[%emt 0:01:44]} Nxe4 {[%emt 0:03:22]} 25. Nxe4 {[%emt 0:01:51]} Bxe4 {[%emt 0:00:06]} 26. Rf7 {[%emt 0:02:57]} Qc6 {[%emt 0:00:20]} 27. Qd1 {[%emt 0:03:10]} Qc5+ {[%emt 0:00:48]} 28. Kh1 {[%emt 0:01:23]} gxh6 {[%emt 0:00:55]} 29. Qd2 {[%emt 0:04:10]} Qg5 {[%emt 0:00:26]} 30. Qd4+ {[%emt 0:01:00]} Qe5 {[%emt 0:00:20]} 31. Qd2 {[%emt 0:01:17]} Qd5 {[%emt 0:00:10]} 32. Qf2 {[%emt 0:00:53]} Bg7 {[%emt 0:01:07]} 33. Rf1 {[%emt 0:01:19]} Qe6 {[%emt 0:00:21]} 34. Re1 {[%emt 0:01:29]} d5 {[%emt 0:00:36]} 35. Rxc7 {[%emt 0:02:43]} Be5 {[%emt 0:01:04]} 36. Rb7 {[%emt 0:01:01]} Qxh3+ {[%emt 0:00:05]} 37. Kg1 {[%emt 0:01:21]} Qh2+ {[%emt 0:00:06]} 38. Kf1 {[%emt 0:00:12]} Bd3+ {[%emt 0:00:07]} 39. Re2 {[%emt 0:00:38]} Qh1+ {[%emt 0:00:09]} 40. Qg1 {[%emt 0:00:16]} Rf8+ {[%emt 0:00:03]} 41. Ke1 {[%emt 0:00:17]} Qxg1+ {[%emt 0:00:03]} 42. Kd2 {[%emt 0:00:44]} Bf4+ {[%emt 0:00:04]} 0-1

[Event "Chinese Championship-B Women 2024"]
[Site "Liaocheng"]
[Date "2024.04.24"]
[Round "1.2"]
[White "Hu, Yu A."]
[Black "Yang, Fuyu"]
[Result "1-0"]
[WhiteElo "2148"]
[BlackElo "1607"]
[PlyCount "97"]
[EventDate "2024.04.24"]
[EventType "swiss"]
[EventCountry "CHN"]
[TimeControl "5400+30"]

1. d4 {[%emt 0:00:40]} d5 {[%emt 0:00:14]} 2. Nf3 {[%emt 0:00:25]} Nf6 {[%emt 0:00:48]} 3. c4 {[%emt 0:00:23]} e6 {[%emt 0:00:50]} 4. Nc3 {[%emt 0:00:49]} Nbd7 {[%emt 0:01:53]} 5. cxd5 {[%emt 0:01:39]} exd5 {[%emt 0:01:45]} 6. Bg5 {[%emt 0:00:09]} c6 {[%emt 0:02:08]} 7. e3 {[%emt 0:00:24]} Qa5 {[%emt 0:02:08]} 8. Bxf6 {[%emt 0:10:56]} Nxf6 {[%emt 0:01:16]} 9. Nd2 {[%emt 0:02:39]} Bb4 {[%emt 0:05:36]} 10. Qc2 {[%emt 0:01:09]} O-O {[%emt 0:05:09]} 11. Bd3 {[%emt 0:00:30]} c5 {[%emt 0:06:35]} 12. Nb3 {[%emt 0:08:03]} Qc7 {[%emt 0:09:54]} 13. dxc5 {[%emt 0:00:27]} a5 {[%emt 0:04:52]} 14. a3 {[%emt 0:16:14]} a4 {[%emt 0:04:52]} 15. Nd4 {[%emt 0:07:05]} Ba5 {[%emt 0:03:49]} 16. O-O {[%emt 0:00:36]} Qxc5 {[%emt 0:04:57]} 17. Nxa4 {[%emt 0:00:47]} Qd6 {[%emt 0:02:05]} 18. Qc5 {[%emt 0:09:45]} Qe5 {[%emt 0:03:22]} 19. b4 {[%emt 0:02:07]} Bd8 {[%emt 0:05:46]} 20. Nf3 {[%emt 0:02:32]} Qe6 {[%emt 0:02:09]} 21. Qc2 {[%emt 0:00:22]} b6 {[%emt 0:05:48]} 22. Nc3 {[%emt 0:01:52]} Bd7 {[%emt 0:01:16]} 23. Ne2 {[%emt 0:04:09]} Ng4 {[%emt 0:02:18]} 24. Bxh7+ {[%emt 0:03:47]} Kh8 {[%emt 0:00:12]} 25. Nf4 {[%emt 0:00:20]} Qh6 {[%emt 0:00:47]} 26. Bf5 {[%emt 0:00:40]} Ba4 {[%emt 0:02:07]} 27. Qd3 {[%emt 0:04:43]} Nf6 {[%emt 0:01:32]} 28. Rac1 {[%emt 0:03:29]} g6 {[%emt 0:00:53]} 29. Bc8 {[%emt 0:01:14]} g5 {[%emt 0:03:20]} 30. Nxd5 {[%emt 0:00:25]} Nxd5 {[%emt 0:00:08]} 31. Qxd5 {[%emt 0:00:08]} Bf6 {[%emt 0:00:18]} 32. Qxa8 {[%emt 0:00:10]} Bb5 {[%emt 0:05:21]} 33. Rfd1 {[%emt 0:01:35]} g4 {[%emt 0:01:12]} 34. Nd4 {[%emt 0:00:33]} Bd7 {[%emt 0:02:25]} 35. Qb7 {[%emt 0:00:14]} Ba4 {[%emt 0:00:40]} 36. Re1 {[%emt 0:02:27]} Be5 {[%emt 0:01:00]} 37. g3 {[%emt 0:00:11]} Qf6 {[%emt 0:03:25]} 38. Bxg4 {[%emt 0:00:34]} Rb8 {[%emt 0:00:52]} 39. Rc8+ {[%emt 0:00:19]} Rxc8 {[%emt 0:00:13]} 40. Qxc8+ {[%emt 0:00:05]} Kg7 {[%emt 0:00:17]} 41. Nf5+ {[%emt 0:01:06]} Kh7 {[%emt 0:00:10]} 42. Qf8 {[%emt 0:00:31]} Bc6 {[%emt 0:00:30]} 43. e4 {[%emt 0:00:45]} Bc3 {[%emt 0:00:28]} 44. Ne7 {[%emt 0:00:34]} Bd7 {[%emt 0:02:30]} 45. Bxd7 {[%emt 0:00:27]} Bxe1 {[%emt 0:00:14]} 46. Bf5+ {[%emt 0:00:06]} Qxf5 {[%emt 0:00:07]} 47. Qg8+ {[%emt 0:00:24]} Kh6 {[%emt 0:00:10]} 48. Nxf5+ {[%emt 0:00:03]} Kh5 {[%emt 0:00:12]} 49. g4# {[%emt 0:00:03]} 1-0

[Event "Chinese Championship-B Women 2024"]
[Site "Liaocheng"]
[Date "2024.04.24"]
[Round "1.3"]
[White "Qu, Manchen"]
[Black "Chu, Ruotong"]
[Result "1/2-1/2"]
[WhiteElo "1604"]
[BlackElo "2124"]
[PlyCount "78"]
[EventDate "2024.04.24"]
[EventType "swiss"]
[EventCountry "CHN"]
[TimeControl "5400+30"]

1. e4 {[%emt 0:00:03]} c5 {[%emt 0:06:10]} 2. Nf3 {[%emt 0:00:08]} e6 {[%emt 0:01:06]} 3. d4 {[%emt 0:00:13]} cxd4 {[%emt 0:00:14]} 4. Nxd4 {[%emt 0:00:05]} Nc6 {[%emt 0:00:02]} 5. Nc3 {[%emt 0:00:29]} Qc7 {[%emt 0:00:19]} 6. Be3 {[%emt 0:04:43]} Nf6 {[%emt 0:00:40]} 7. Bd3 {[%emt 0:01:49]} a6 {[%emt 0:00:58]} 8. O-O {[%emt 0:02:28]} h5 {[%emt 0:02:12]} 9. h3 {[%emt 0:02:58]} b5 {[%emt 0:04:57]} 10. a3 {[%emt 0:03:53]} Bb7 {[%emt 0:00:23]} 11. Nxc6 {[%emt 0:22:01]} dxc6 {[%emt 0:06:23]} 12. f4 {[%emt 0:03:34]} c5 {[%emt 0:07:01]} 13. e5 {[%emt 0:04:12]} b4 {[%emt 0:09:29]} 14. exf6 {[%emt 0:08:43]} bxc3 {[%emt 0:00:05]} 15. bxc3 {[%emt 0:00:35]} gxf6 {[%emt 0:00:13]} 16. Be2 {[%emt 0:02:13]} Rd8 {[%emt 0:00:29]} 17. Qe1 {[%emt 0:01:06]} f5 {[%emt 0:02:43]} 18. Bf3 {[%emt 0:05:44]} Be7 {[%emt 0:00:10]} 19. Bxb7 {[%emt 0:05:03]} Qxb7 {[%emt 0:00:05]} 20. Qf2 {[%emt 0:01:47]} Rg8 {[%emt 0:02:31]} 21. Rab1 {[%emt 0:01:42]} Qe4 {[%emt 0:03:40]} 22. Rfd1 {[%emt 0:04:07]} Rxd1+ {[%emt 0:10:53]} 23. Rxd1 {[%emt 0:00:08]} Rg6 {[%emt 0:01:35]} 24. Rd2 {[%emt 0:10:49]} Bh4 {[%emt 0:03:27]} 25. Qxh4 {[%emt 0:03:12]} Qxe3+ {[%emt 0:00:07]} 26. Qf2 {[%emt 0:00:11]} Qxc3 {[%emt 0:00:59]} 27. Rd3 {[%emt 0:00:21]} Qa5 {[%emt 0:17:21]} 28. Qf3 {[%emt 0:03:42]} Rh6 {[%emt 0:13:37]} 29. Qc6+ {[%emt 0:01:54]} Kf8 {[%emt 0:00:44]} 30. Qd6+ {[%emt 0:00:36]} Kg7 {[%emt 0:00:23]} 31. Qe5+ {[%emt 0:00:52]} Kg8 {[%emt 0:02:03]} 32. Rg3+ {[%emt 0:00:22]} Rg6 {[%emt 0:00:15]} 33. Rxg6+ {[%emt 0:00:22]} fxg6 {[%emt 0:00:04]} 34. Qxe6+ {[%emt 0:00:05]} Kg7 {[%emt 0:00:59]} 35. Qe7+ {[%emt 0:00:10]} Kg8 {[%emt 0:00:03]} 36. Qe8+ {[%emt 0:00:16]} Kg7 {[%emt 0:00:02]} 37. Qe7+ {[%emt 0:00:09]} Kg8 {[%emt 0:00:10]} 38. Qe8+ {[%emt 0:00:08]} Kg7 {[%emt 0:00:03]} 39. Qe7+ {[%emt 0:00:12]} Kg8 {[%emt 0:00:04]} 1/2-1/2

[Event "Chinese Championship-B Women 2024"]
[Site "Liaocheng"]
[Date "2024.04.24"]
[Round "1.4"]
[White "Ren, Xiaoyi"]
[Black "Wu, Ruoyi"]
[Result "0-1"]
[WhiteElo "2075"]
[BlackElo "1604"]
[PlyCount "88"]
[EventDate "2024.04.24"]
[EventType "swiss"]
[EventCountry "CHN"]
[TimeControl "5400+30"]

1. e4 {[%emt 0:00:05]} c6 {[%emt 0:00:10]} 2. d4 {[%emt 0:00:04]} d5 {[%emt 0:00:05]} 3. e5 {[%emt 0:00:04]} Bf5 {[%emt 0:00:09]} 4. h4 {[%emt 0:00:04]} h6 {[%emt 0:00:15]} 5. g4 {[%emt 0:00:03]} Bh7 {[%emt 0:00:51]} 6. e6 {[%emt 0:00:06]} fxe6 {[%emt 0:00:54]} 7. Bd3 {[%emt 0:00:05]} g6 {[%emt 0:10:55]} 8. h5 {[%emt 0:00:42]} g5 {[%emt 0:01:22]} 9. f4 {[%emt 0:02:19]} gxf4 {[%emt 0:02:22]} 10. Bxf4 {[%emt 0:01:38]} Nd7 {[%emt 0:02:14]} 11. Nf3 {[%emt 0:04:59]} Qb6 {[%emt 0:03:44]} 12. b3 {[%emt 0:17:25]} O-O-O {[%emt 0:03:09]} 13. Nc3 {[%emt 0:00:45]} Ngf6 {[%emt 0:06:59]} 14. Bxh7 {[%emt 0:05:01]} Rxh7 {[%emt 0:04:09]} 15. g5 {[%emt 0:00:06]} Ne8 {[%emt 0:03:30]} 16. Qd2 {[%emt 0:03:49]} Bg7 {[%emt 0:09:41]} 17. O-O-O {[%emt 0:00:45]} Nd6 {[%emt 0:01:41]} 18. gxh6 {[%emt 0:05:50]} Bf6 {[%emt 0:01:39]} 19. Rhe1 {[%emt 0:00:04]} Nf8 {[%emt 0:02:28]} 20. Kb1 {[%emt 0:00:11]} Qb4 {[%emt 0:02:54]} 21. Qd3 {[%emt 0:07:07]} c5 {[%emt 0:03:20]} 22. Ng5 {[%emt 0:16:30]} Bxg5 {[%emt 0:01:29]} 23. Bxg5 {[%emt 0:00:04]} cxd4 {[%emt 0:02:12]} 24. Qxd4 {[%emt 0:04:15]} Qxd4 {[%emt 0:00:11]} 25. Rxd4 {[%emt 0:00:03]} Nf5 {[%emt 0:00:55]} 26. Rf4 {[%emt 0:00:53]} Nxh6 {[%emt 0:04:37]} 27. Nb5 {[%emt 0:00:05]} a6 {[%emt 0:00:56]} 28. Nd4 {[%emt 0:00:05]} Kd7 {[%emt 0:00:44]} 29. c4 {[%emt 0:05:17]} Nf7 {[%emt 0:02:26]} 30. Bh4 {[%emt 0:05:00]} dxc4 {[%emt 0:06:21]} 31. Ref1 {[%emt 0:09:13]} Ke8 {[%emt 0:01:51]} 32. Nf3 {[%emt 0:00:40]} Nd7 {[%emt 0:01:59]} 33. Rg4 {[%emt 0:03:48]} Nf6 {[%emt 0:01:46]} 34. Rxc4 {[%emt 0:01:06]} Rxh5 {[%emt 0:01:07]} 35. Rc7 {[%emt 0:00:12]} Rd7 {[%emt 0:00:40]} 36. Rc8+ {[%emt 0:00:05]} Nd8 {[%emt 0:01:08]} 37. Bg3 {[%emt 0:00:54]} Ne4 {[%emt 0:01:42]} 38. Bf4 {[%emt 0:04:04]} Rf5 {[%emt 0:01:46]} 39. Bh6 {[%emt 0:00:04]} Rd3 {[%emt 0:00:52]} 40. Rg1 {[%emt 0:01:22]} Kd7 {[%emt 0:00:28]} 41. Ne1 {[%emt 0:00:09]} Rh3 {[%emt 0:01:05]} 42. Rc4 {[%emt 0:02:25]} Nd6 {[%emt 0:00:23]} 43. Bg7 {[%emt 0:00:13]} Nxc4 {[%emt 0:00:19]} 44. bxc4 {[%emt 0:00:04]} Rfh5 {[%emt 0:01:33]} 0-1

[Event "Chinese Championship-B Women 2024"]
[Site "Liaocheng"]
[Date "2024.04.24"]
[Round "1.5"]
[White "Song, Yuzhen"]
[Black "Yang, Yijing"]
[Result "1-0"]
[WhiteElo "1598"]
[BlackElo "2040"]
[PlyCount "103"]
[EventDate "2024.04.24"]
[EventType "swiss"]
[EventCountry "CHN"]
[TimeControl "5400+30"]

1. e4 {[%emt 0:00:03]} c5 {[%emt 0:00:32]} 2. Nf3 {[%emt 0:00:40]} e6 {[%emt 0:00:06]} 3. c3 {[%emt 0:00:30]} Nf6 {[%emt 0:00:05]} 4. e5 {[%emt 0:00:41]} Nd5 {[%emt 0:00:05]} 5. d4 {[%emt 0:00:34]} cxd4 {[%emt 0:00:07]} 6. cxd4 {[%emt 0:00:27]} d6 {[%emt 0:00:05]} 7. Be2 {[%emt 0:02:13]} Nc6 {[%emt 0:02:15]} 8. O-O {[%emt 0:03:18]} Qc7 {[%emt 0:02:22]} 9. exd6 {[%emt 0:05:48]} Bxd6 {[%emt 0:00:10]} 10. Nc3 {[%emt 0:01:48]} Nxc3 {[%emt 0:06:22]} 11. bxc3 {[%emt 0:00:23]} O-O {[%emt 0:00:09]} 12. Qd3 {[%emt 0:04:38]} h6 {[%emt 0:06:12]} 13. Bb2 {[%emt 0:02:00]} e5 {[%emt 0:09:40]} 14. dxe5 {[%emt 0:06:23]} Nxe5 {[%emt 0:00:19]} 15. Nxe5 {[%emt 0:02:07]} Bxe5 {[%emt 0:00:06]} 16. h3 {[%emt 0:00:16]} Be6 {[%emt 0:01:48]} 17. Qc2 {[%emt 0:04:14]} Rac8 {[%emt 0:12:26]} 18. Qe4 {[%emt 0:06:16]} Rfe8 {[%emt 0:03:10]} 19. Bd3 {[%emt 0:12:48]} f5 {[%emt 0:01:35]} 20. Qf3 {[%emt 0:01:54]} Qf7 {[%emt 0:03:58]} 21. Rac1 {[%emt 0:01:25]} Qf6 {[%emt 0:16:38]} 22. Bb1 {[%emt 0:03:25]} Rc4 {[%emt 0:05:26]} 23. Rfe1 {[%emt 0:03:32]} b6 {[%emt 0:06:48]} 24. a3 {[%emt 0:05:10]} Kh8 {[%emt 0:01:44]} 25. Qh5 {[%emt 0:03:11]} Re7 {[%emt 0:01:28]} 26. Qf3 {[%emt 0:02:15]} Re8 {[%emt 0:09:42]} 27. Qh5 {[%emt 0:00:30]} Rec8 {[%emt 0:00:38]} 28. Qe2 {[%emt 0:01:10]} R8c5 {[%emt 0:00:48]} 29. Bd3 {[%emt 0:02:20]} Rh4 {[%emt 0:01:25]} 30. Qf3 {[%emt 0:04:48]} Bd7 {[%emt 0:04:46]} 31. Qa8+ {[%emt 0:01:33]} Kh7 {[%emt 0:00:05]} 32. Qf3 {[%emt 0:05:01]} Rf4 {[%emt 0:01:41]} 33. Qe3 {[%emt 0:01:35]} Bc6 {[%emt 0:00:18]} 34. Bf1 {[%emt 0:01:41]} Re4 {[%emt 0:00:40]} 35. Qd3 {[%emt 0:02:01]} Qg5 {[%emt 0:01:58]} 36. Rxe4 {[%emt 0:02:24]} Bxe4 {[%emt 0:00:03]} 37. Qe2 {[%emt 0:00:44]} Bf4 {[%emt 0:02:39]} 38. Rd1 {[%emt 0:00:35]} Rc6 {[%emt 0:00:01]} 39. f3 {[%emt 0:02:52]} Qg3 {[%emt 0:00:03]} 40. fxe4 {[%emt 0:00:23]} Qh2+ {[%emt 0:00:13]} 41. Kf2 {[%emt 0:00:08]} Qg3+ {[%emt 0:00:13]} 42. Kg1 {[%emt 0:00:11]} Qh2+ {[%emt 0:00:46]} 43. Kf2 {[%emt 0:00:05]} Bg3+ {[%emt 0:00:30]} 44. Ke3 {[%emt 0:00:26]} fxe4 {[%emt 0:00:17]} 45. Kd2 {[%emt 0:00:27]} Re6 {[%emt 0:01:15]} 46. Kc2 {[%emt 0:00:25]} Bf4 {[%emt 0:01:02]} 47. Rd4 {[%emt 0:02:02]} Qg1 {[%emt 0:00:31]} 48. Rxe4 {[%emt 0:00:23]} Rf6 {[%emt 0:00:02]} 49. Qd3 {[%emt 0:00:56]} Kg8 {[%emt 0:00:30]} 50. Qc4+ {[%emt 0:01:04]} Kh7 {[%emt 0:00:16]} 51. Rxf4 {[%emt 0:00:19]} Rd6 {[%emt 0:00:44]} 52. Bd3+ {[%emt 0:00:18]} 1-0

[Event "Chinese Championship-B Women 2024"]
[Site "Liaocheng"]
[Date "2024.04.24"]
[Round "1.6"]
[White "Xu, Mingwei"]
[Black "Wang, Yujia"]
[Result "1-0"]
[WhiteElo "2037"]
[BlackElo "1598"]
[PlyCount "79"]
[EventDate "2024.04.24"]
[EventType "swiss"]
[EventCountry "CHN"]
[TimeControl "5400+30"]

1. e4 {[%emt 0:00:03]} e5 {[%emt 0:00:04]} 2. Nf3 {[%emt 0:00:05]} Nc6 {[%emt 0:00:06]} 3. Nc3 {[%emt 1:31:52]} Nf6 {[%emt 0:00:05]} 4. d4 {[%emt 0:00:00]} exd4 {[%emt 0:00:04]} 5. Nxd4 {[%emt 0:00:00]} Bb4 {[%emt 0:00:09]} 6. Nxc6 {[%emt 0:00:00]} bxc6 {[%emt 0:00:05]} 7. Bd3 {[%emt 0:00:00]} O-O {[%emt 0:00:13]} 8. O-O {[%emt 0:00:00]} d5 {[%emt 0:00:28]} 9. exd5 {[%emt 0:00:00]} cxd5 {[%emt 0:00:42]} 10. h3 {[%emt 0:00:00]} h6 {[%emt 0:01:39]} 11. Qf3 {[%emt 0:00:00]} c6 {[%emt 0:00:42]} 12. Bf4 {[%emt 0:00:00]} Bd6 {[%emt 0:01:16]} 13. Ne2 {[%emt 0:00:00]} Qc7 {[%emt 0:03:34]} 14. Rfd1 {[%emt 0:00:00]} Be6 {[%emt 0:02:17]} 15. Bxh6 {[%emt 0:00:00]} c5 {[%emt 0:05:08]} 16. c3 {[%emt 0:00:00]} c4 {[%emt 0:08:11]} 17. Bc2 {[%emt 0:00:00]} Ne4 {[%emt 0:02:43]} 18. Bf4 {[%emt 0:00:00]} Nf6 {[%emt 1:12:04]} 19. Rd4 {[%emt 0:00:00]} Be5 {[%emt 0:00:00]} 20. Bxe5 {[%emt 0:00:00]} Qxe5 {[%emt 0:01:00]} 21. Ng3 {[%emt 0:00:00]} g6 {[%emt 0:00:00]} 22. Kf1 {[%emt 0:00:00]} Kg7 {[%emt 0:00:00]} 23. Re1 {[%emt 0:00:00]} Qc7 {[%emt 0:00:00]} 24. Rf4 {[%emt 0:00:00]} Nh7 {[%emt 0:00:00]} 25. Nh5+ {[%emt 0:00:00]} Kg8 {[%emt 0:00:00]} 26. Nf6+ {[%emt 0:00:00]} Nxf6 {[%emt 0:00:00]} 27. Rxf6 {[%emt 0:00:00]} Kg7 {[%emt 0:00:00]} 28. Rexe6 {[%emt 0:00:00]} Rfe8 {[%emt 0:00:00]} 29. Rxg6+ {[%emt 0:00:00]} Kf8 {[%emt 0:00:00]} 30. Rxe8+ {[%emt 0:00:00]} Rxe8 {[%emt 0:00:00]} 31. Rh6 {[%emt 0:00:00]} Qe5 {[%emt 0:00:00]} 32. g3 {[%emt 0:00:00]} Re6 {[%emt 0:00:00]} 33. Rxe6 {[%emt 0:00:00]} Qxe6 {[%emt 0:00:00]} 34. Kg2 {[%emt 0:00:04]} a5 {[%emt 0:00:00]} 35. h4 {[%emt 0:00:42]} Kg7 {[%emt 0:00:00]} 36. Qf5 {[%emt 0:01:27]} Qb6 {[%emt 0:00:00]} 37. h5 {[%emt 0:01:25]} Qe6 {[%emt 0:00:00]} 38. Qg5+ {[%emt 0:00:39]} Kh8 {[%emt 0:00:00]} 39. h6 {[%emt 0:00:12]} f6 {[%emt 0:00:00]} 40. Qg7# {[%emt 0:00:07]} 1-0

[Event "Chinese Championship-B Women 2024"]
[Site "Liaocheng"]
[Date "2024.04.24"]
[Round "1.7"]
[White "Tong, Yiyi"]
[Black "Zhao, Yunqing"]
[Result "1/2-1/2"]
[WhiteElo "1591"]
[BlackElo "1965"]
[PlyCount "115"]
[EventDate "2024.04.24"]
[EventType "swiss"]
[EventCountry "CHN"]
[TimeControl "5400+30"]

1. d4 {[%emt 0:00:03]} Nf6 {[%emt 0:00:04]} 2. c4 {[%emt 0:00:08]} e6 {[%emt 0:00:06]} 3. Nf3 {[%emt 0:00:21]} b6 {[%emt 0:00:36]} 4. Nc3 {[%emt 0:01:42]} Bb4 {[%emt 0:00:28]} 5. e3 {[%emt 0:00:15]} Bb7 {[%emt 0:00:47]} 6. Bd3 {[%emt 0:00:37]} O-O {[%emt 0:01:41]} 7. Bd2 {[%emt 0:02:00]} d6 {[%emt 0:01:53]} 8. O-O {[%emt 0:00:52]} Nbd7 {[%emt 0:00:49]} 9. Ne2 {[%emt 0:01:43]} Bxd2 {[%emt 0:01:09]} 10. Nxd2 {[%emt 0:00:11]} e5 {[%emt 0:02:10]} 11. Qc2 {[%emt 0:03:44]} Re8 {[%emt 0:04:30]} 12. Ng3 {[%emt 0:01:45]} Nf8 {[%emt 0:04:19]} 13. Rad1 {[%emt 0:05:55]} g6 {[%emt 0:06:34]} 14. c5 {[%emt 0:08:29]} exd4 {[%emt 0:05:31]} 15. exd4 {[%emt 0:00:44]} Ne6 {[%emt 0:01:44]} 16. Nb3 {[%emt 0:01:27]} Qd7 {[%emt 0:08:15]} 17. Rfe1 {[%emt 1:09:04]} Rad8 {[%emt 0:58:24]} 18. Bc4 {[%emt 0:00:00]} Nf4 {[%emt 0:00:00]} 19. f3 {[%emt 0:00:00]} bxc5 {[%emt 0:00:00]} 20. Rxe8+ {[%emt 0:00:00]} Qxe8 {[%emt 0:00:00]} 21. dxc5 {[%emt 0:00:00]} dxc5 {[%emt 0:00:00]} 22. Rxd8 {[%emt 0:00:00]} Qxd8 {[%emt 0:00:00]} 23. Qc3 {[%emt 0:00:00]} Qd6 {[%emt 0:00:00]} 24. Qe3 {[%emt 0:00:00]} Bd5 {[%emt 0:00:31]} 25. Bxd5 {[%emt 0:00:00]} N4xd5 {[%emt 0:01:35]} 26. Qxc5 {[%emt 0:00:00]} Qe5 {[%emt 0:00:40]} 27. Qf2 {[%emt 0:00:00]} h5 {[%emt 0:00:52]} 28. Qe2 {[%emt 0:00:00]} Qf4 {[%emt 0:01:06]} 29. Qd2 {[%emt 0:00:00]} h4 {[%emt 0:00:44]} 30. Ne4 {[%emt 0:00:00]} Nxe4 {[%emt 0:00:26]} 31. Qxf4 {[%emt 0:00:00]} Nxf4 {[%emt 0:00:03]} 32. fxe4 {[%emt 0:00:00]} Nd3 {[%emt 0:00:51]} 33. Kf1 {[%emt 0:00:00]} f6 {[%emt 0:00:39]} 34. Nd4 {[%emt 0:00:00]} c5 {[%emt 0:01:03]} 35. Nb5 {[%emt 0:00:00]} Nxb2 {[%emt 0:00:00]} 36. Nxa7 {[%emt 0:00:00]} Kf7 {[%emt 0:00:14]} 37. Nb5 {[%emt 0:00:00]} Ke6 {[%emt 0:00:29]} 38. Ke2 {[%emt 0:00:00]} Ke5 {[%emt 0:00:25]} 39. Ke3 {[%emt 0:00:00]} g5 {[%emt 0:00:44]} 40. Nc3 {[%emt 0:00:00]} Nc4+ {[%emt 0:00:35]} 41. Kd3 Na3 {[%emt 0:00:29]} 42. Ke3 {[%emt 0:00:00]} g4 {[%emt 0:01:04]} 43. g3 {[%emt 0:00:00]} h3 {[%emt 0:00:00]} 44. Ne2 {[%emt 0:00:00]} c4 {[%emt 0:00:28]} 45. Nd4 {[%emt 0:00:00]} Nb1 {[%emt 0:00:31]} 46. a4 {[%emt 0:00:00]} Nc3 {[%emt 0:00:19]} 47. a5 {[%emt 0:00:00]} Nxe4 {[%emt 0:00:22]} 48. Nc6+ {[%emt 0:15:30]} Kd6 {[%emt 0:00:41]} 49. Nd4 {[%emt 0:00:00]} Nxg3 {[%emt 0:00:28]} 50. Kf4 {[%emt 0:00:00]} Nf1 {[%emt 0:00:33]} 51. Kxg4 {[%emt 0:00:00]} Nxh2+ {[%emt 0:00:07]} 52. Kxh3 {[%emt 0:00:00]} Nf1 {[%emt 0:00:11]} 53. Kg4 {[%emt 0:00:00]} Ne3+ {[%emt 0:00:44]} 54. Kf4 {[%emt 0:00:00]} Nd5+ {[%emt 0:00:16]} 55. Ke4 {[%emt 0:00:00]} Nc7 {[%emt 0:00:37]} 56. Nf5+ {[%emt 0:00:07]} Kc5 {[%emt 0:00:18]} 57. Ne3 {[%emt 0:00:52]} Kb4 {[%emt 0:01:22]} 58. Nxc4 {[%emt 0:01:02]} 1/2-1/2

[Event "Chinese Championship-B Women 2024"]
[Site "Liaocheng"]
[Date "2024.04.24"]
[Round "1.8"]
[White "Du, Yuxin"]
[Black "Wang, Rachel Zihan"]
[Result "1/2-1/2"]
[WhiteElo "1960"]
[BlackElo "1813"]
[PlyCount "117"]
[EventDate "2024.04.24"]
[EventType "swiss"]
[EventCountry "CHN"]
[TimeControl "5400+30"]

1. e4 {[%emt 0:00:04]} e6 {[%emt 0:00:04]} 2. d4 {[%emt 0:00:33]} d5 {[%emt 0:00:07]} 3. e5 {[%emt 0:00:11]} c5 {[%emt 0:00:06]} 4. c3 {[%emt 0:00:05]} Nc6 {[%emt 0:00:04]} 5. Nf3 {[%emt 0:00:09]} Qb6 {[%emt 0:00:09]} 6. a3 {[%emt 0:01:05]} c4 {[%emt 0:00:07]} 7. Be2 {[%emt 0:02:15]} Na5 {[%emt 0:00:46]} 8. Nbd2 {[%emt 0:01:03]} Bd7 {[%emt 0:00:12]} 9. O-O {[%emt 0:01:08]} Ne7 {[%emt 0:01:09]} 10. Re1 {[%emt 0:03:43]} h6 {[%emt 0:00:49]} 11. Rb1 {[%emt 0:11:14]} g5 {[%emt 0:10:31]} 12. g3 {[%emt 0:06:35]} Ng6 {[%emt 0:01:37]} 13. h3 {[%emt 0:03:22]} Be7 {[%emt 0:01:17]} 14. Nh2 {[%emt 0:01:53]} O-O-O {[%emt 0:01:48]} 15. Bh5 {[%emt 0:01:10]} Rdf8 {[%emt 0:06:16]} 16. Ng4 {[%emt 1:04:00]} Be8 {[%emt 1:13:28]} 17. Re3 {[%emt 0:00:00]} Bd8 {[%emt 0:00:00]} 18. Rf3 {[%emt 0:00:00]} Qc7 {[%emt 0:00:00]} 19. Nf1 {[%emt 0:00:00]} Ne7 {[%emt 0:00:00]} 20. Nfe3 {[%emt 0:00:00]} f5 {[%emt 0:00:00]} 21. exf6 {[%emt 0:00:00]} Bxh5 {[%emt 0:00:00]} 22. fxe7 {[%emt 0:00:00]} Bxe7 {[%emt 0:00:00]} 23. Rxf8+ {[%emt 0:00:00]} Rxf8 {[%emt 0:00:00]} 24. Bd2 {[%emt 0:00:58]} Nb3 {[%emt 0:00:00]} 25. Be1 {[%emt 0:01:18]} Bg6 {[%emt 0:00:00]} 26. Nc2 {[%emt 0:00:15]} Bd6 {[%emt 0:00:00]} 27. Qe2 {[%emt 0:00:18]} Kb8 {[%emt 0:00:00]} 28. Rd1 {[%emt 0:00:53]} Bd3 {[%emt 0:00:00]} 29. Rxd3 {[%emt 0:00:06]} cxd3 {[%emt 0:00:00]} 30. Qxd3 {[%emt 0:00:06]} Qc4 {[%emt 0:00:00]} 31. Qxc4 {[%emt 0:02:35]} dxc4 {[%emt 0:00:00]} 32. Nxh6 {[%emt 0:00:48]} e5 {[%emt 0:00:00]} 33. Ng4 {[%emt 0:00:33]} e4 {[%emt 0:00:00]} 34. Nge3 {[%emt 0:00:35]} b5 {[%emt 0:00:00]} 35. Kg2 {[%emt 0:00:17]} Kb7 {[%emt 0:00:00]} 36. Nf1 {[%emt 0:00:36]} Nc1 {[%emt 0:00:00]} 37. Nfe3 {[%emt 0:00:35]} Nb3 {[%emt 0:00:00]} 38. Nf1 Nc1 {[%emt 0:00:00]} 39. Nfe3 {[%emt 0:00:32]} Nd3 {[%emt 0:00:00]} 40. Nd1 {[%emt 0:00:22]} Nxe1+ {[%emt 0:00:00]} 41. Nxe1 {[%emt 0:00:05]} a5 {[%emt 0:00:00]} 42. Ne3 {[%emt 0:02:08]} Rc8 {[%emt 0:00:00]} 43. N1c2 {[%emt 0:00:00]} b4 {[%emt 0:00:00]} 44. axb4 {[%emt 0:00:11]} axb4 {[%emt 0:00:00]} 45. cxb4 {[%emt 0:00:37]} c3 {[%emt 0:00:00]} 46. bxc3 {[%emt 0:00:26]} Rxc3 {[%emt 0:00:00]} 47. h4 {[%emt 0:00:39]} gxh4 {[%emt 0:00:00]} 48. gxh4 {[%emt 0:00:04]} Rc8 {[%emt 0:00:00]} 49. Nf5 {[%emt 0:00:54]} Rxc2 {[%emt 0:00:05]} 50. Nxd6+ {[%emt 0:00:06]} Kc6 {[%emt 0:00:05]} 51. Nxe4 {[%emt 0:00:06]} Kd5 52. Ng5 {[%emt 0:00:38]} Kxd4 {[%emt 0:00:52]} 53. Kg3 {[%emt 0:00:41]} Ke5 {[%emt 0:00:14]} 54. Nf7+ {[%emt 0:00:39]} Ke6 {[%emt 0:00:26]} 55. Ng5+ {[%emt 0:00:16]} Kf5 {[%emt 0:00:19]} 56. f3 {[%emt 0:00:11]} Rb2 {[%emt 0:00:23]} 57. Ne4 {[%emt 0:00:15]} Rxb4 {[%emt 0:00:22]} 58. Nd6+ {[%emt 0:00:40]} Kf6 {[%emt 0:01:17]} 59. Ne4+ {[%emt 0:00:16]} 1/2-1/2